bitfinex/quotes_BTCUSD_20250110
["timestamp","ask_amount","ask_price","bid_price","bid_amount"]
[1736534484775,0.00014805,94894.0,94893.0,0.01310918]
[1736534484971,0.00014805,94894.0,94893.0,0.00910918]
[1736534485203,0.00014805,94894.0,94893.0,0.00010918]
[1736534485400,0.00014805,94894.0,94893.0,0.00410918]
[1736534485604,0.01060109,94894.0,94893.0,0.01310918]
[1736534485755,0.00014805,94894.0,94893.0,0.00410918]
[1736534486169,0.00014805,94894.0,94893.0,0.00510918]
[1736534486416,0.00014805,94894.0,94893.0,0.00410918]
[1736534486797,0.00014805,94894.0,94893.0,0.00510918]
[1736534487578,0.00014805,94894.0,94893.0,0.10940894]
[1736534487856,0.00014805,94894.0,94893.0,0.14453271]
[1736534488068,0.00014805,94894.0,94893.0,0.24558624]
[1736534488275,0.00014805,94894.0,94893.0,0.3226319]
[1736534488683,0.00014805,94894.0,94893.0,1.8226319]
[1736534489123,0.00014805,94894.0,94893.0,1.8176319]
[1736534489350,0.00014805,94894.0,94893.0,1.8146319]
[1736534489570,0.00014805,94894.0,94893.0,1.71832353]
[1736534489778,0.00014805,94894.0,94893.0,1.71343271]
[1736534490011,0.00014805,94894.0,94893.0,1.72243271]
[1736534490416,0.00014805,94894.0,94893.0,0.22243271]
[1736534490778,0.00014805,94894.0,94893.0,0.22543271]
[1736534490974,0.01091461,94894.0,94893.0,0.22543271]
[1736534491190,0.01091461,94894.0,94893.0,0.22243271]
[1736534491389,0.01091461,94894.0,94893.0,0.00910918]
[1736534491595,0.01091461,94894.0,94893.0,0.00510918]
[1736534491801,0.01091461,94894.0,94893.0,0.01410918]
[1736534492228,0.01091461,94894.0,94893.0,0.00510918]
[1736534492407,0.01091461,94894.0,94893.0,0.01410918]
[1736534492806,0.16091461,94894.0,94893.0,0.01410918]
[1736534493013,0.25971542,94894.0,94893.0,0.01410918]
[1736534493328,0.25971542,94894.0,94893.0,0.00510918]
[1736534493529,0.25971542,94894.0,94893.0,0.011]
[1736534493897,0.25971542,94894.0,94893.0,0.006]
[1736534494304,0.25971542,94894.0,94893.0,0.01010918]
[1736534494931,0.25971542,94894.0,94893.0,0.01]
[1736534495178,0.25971542,94894.0,94893.0,0.004]
[1736534495380,0.10971542,94894.0,94893.0,0.003]
[1736534495539,0.10971542,94894.0,94893.0,0.004]
[1736534495735,0.10971542,94894.0,94893.0,0.001]
[1736534495939,0.10971542,94894.0,94893.0,0.003]
[1736534496346,0.47047642,94894.0,94893.0,0.001]
[1736534496564,0.57477618,94894.0,94893.0,0.001]
[1736534497095,0.76266305,94894.0,94893.0,0.001]
[1736534497300,0.77124554,94894.0,94893.0,0.001]
[1736534497540,0.70667618,94894.0,94893.0,0.001]
[1736534498126,0.70767618,94894.0,94893.0,0.001]
[1736534498488,0.45959781,94878.0,94877.0,0.00010918]
[1736534498690,0.360797,94878.0,94877.0,0.00010918]
[1736534499478,0.45959781,94878.0,94877.0,0.00010918]
[1736534500107,0.360797,94878.0,94877.0,0.00010918]
[1736534500309,0.45959781,94878.0,94877.0,0.00010918]
[1736534500508,0.360797,94878.0,94877.0,0.00210918]
[1736534500969,0.01033102,94878.0,94877.0,0.00210918]
[1736534501173,0.01033102,94878.0,94877.0,0.10840894]
[1736534501399,0.360779,94886.0,94885.0,0.00010918]
[1736534501641,0.15,94885.0,94884.0,0.00010918]
[1736534502682,0.211779,94886.0,94884.0,0.00010918]
[1736534502937,0.210779,94886.0,94884.0,0.00010918]
[1736534503271,0.001,94885.0,94884.0,0.00010918]
[1736534503467,0.210779,94886.0,94884.0,0.00010918]
[1736534503882,0.211779,94886.0,94884.0,0.00010918]
[1736534504310,0.211779,94886.0,94884.0,0.00110918]
[1736534504807,0.211779,94886.0,94884.0,0.00010918]
[1736534505243,0.15,94885.0,94884.0,0.00210918]
[1736534505532,0.15,94885.0,94884.0,0.00410918]
[1736534505777,0.15,94885.0,94884.0,0.00210918]
[1736534505959,0.15,94885.0,94884.0,0.00310918]
[1736534506313,0.15,94885.0,94884.0,0.002]
[1736534506518,0.24880081,94885.0,94884.0,0.002]
[1736534506724,0.24880081,94885.0,94884.0,0.003]
[1736534506898,0.24880081,94885.0,94884.0,0.002]
[1736534507138,0.24880081,94885.0,94866.0,8.53e-05]
[1736534507139,0.210817,94869.0,94866.0,8.53e-05]
[1736534507348,0.15,94868.0,94867.0,0.00010918]
[1736534508356,0.15,94870.0,94867.0,0.00010918]
[1736534508562,0.15,94868.0,94867.0,0.00010918]
[1736534508966,0.15,94868.0,94866.0,8.53e-05]
[1736534508967,0.210821,94867.0,94866.0,8.53e-05]
[1736534509178,0.210821,94867.0,94866.0,0.00019448]
[1736534510452,0.360821,94867.0,94866.0,8.53e-05]
[1736534510669,0.45962181,94867.0,94866.0,0.0030853]
[1736534511662,0.45962181,94867.0,94866.0,0.0040853]
[1736534512092,0.45962181,94867.0,94866.0,0.0010853]
[1736534512298,0.45962181,94867.0,94866.0,8.53e-05]
[1736534512515,0.52419117,94867.0,94866.0,0.0040853]
[1736534512734,0.52419117,94867.0,94866.0,8.53e-05]
[1736534512906,0.52519117,94867.0,94866.0,8.53e-05]
[1736534513695,0.52419117,94867.0,94866.0,8.53e-05]
[1736534514524,0.52519117,94867.0,94866.0,8.53e-05]
[1736534514914,0.45963281,94862.0,94861.0,8.53e-05]
[1736534515145,0.4912153,94862.0,94861.0,8.53e-05]
[1736534515344,0.52420217,94862.0,94861.0,8.53e-05]
[1736534516300,0.52420217,94862.0,94861.0,0.00040873]
[1736534516502,0.52520217,94862.0,94861.0,0.00040873]
[1736534517139,0.49361968,94862.0,94861.0,0.00040873]
[1736534517787,0.50433688,94862.0,94861.0,0.00040873]
[1736534517971,0.30969481,94834.0,94830.0,8.53e-05]
[1736534518173,0.09880081,94827.0,94818.0,0.00010918]
[1736534518348,0.15,94821.0,94820.0,0.00010918]
[1736534518559,0.36087097,94820.0,94819.0,0.00023314]
[1736534518711,0.39310282,94820.0,94819.0,0.00023314]
[1736534518911,0.42608969,94820.0,94819.0,0.00023314]
[1736534519110,0.09880081,94812.0,94804.0,0.00010918]
[1736534519361,0.360948,94810.0,94804.0,0.00010918]
[1736534519563,0.360948,94810.0,94788.0,0.0764]
[1736534519564,0.49198066,94810.0,94794.0,0.00010918]
[1736534519716,0.52496753,94810.0,94794.0,0.00010918]
[1736534519917,0.31401953,94810.0,94796.0,0.00010918]
[1736534520130,0.360977,94797.0,94796.0,0.00010918]
[1736534520401,0.42619572,94797.0,94796.0,0.00010918]
[1736534520668,0.211001,94786.0,94785.0,0.00019458]
[1736534521327,0.27621972,94786.0,94785.0,0.00019458]
[1736534521736,0.27621972,94786.0,94762.0,7.068e-05]
[1736534521737,0.09880081,94774.0,94762.0,7.068e-05]
[1736534521958,0.09880081,94774.0,94758.0,0.02354558]
[1736534521959,0.09880081,94759.0,94758.0,0.02354558]
[1736534522116,0.21109,94746.0,94726.0,0.00113016]
[1736534522318,0.24759187,94746.0,94726.0,0.00127397]
[1736534522525,0.24759187,94746.0,94737.0,0.0215162]
[1736534522744,0.21109,94746.0,94737.0,0.0215162]
[1736534522957,0.15,94751.0,94737.0,0.0215162]
[1736534523168,0.15,94749.0,94737.0,0.0215162]
[1736534523595,0.15,94747.0,94745.0,0.05260031]
[1736534523802,0.21109,94746.0,94745.0,0.05260031]
[1736534524061,0.21109,94746.0,94745.0,0.04760031]
[1736534524273,0.21109,94746.0,94745.0,0.05060031]
[1736534524883,0.21109,94746.0,94745.0,0.05360031]
[1736534525475,0.21109,94746.0,94745.0,0.05060031]
[1736534525672,0.21109,94746.0,94745.0,1.54760031]
[1736534525897,0.21109,94746.0,94745.0,1.55560031]
[1736534526442,0.36109,94746.0,94745.0,0.05060031]
[1736534526626,0.36109,94746.0,94745.0,0.05460031]
[1736534527007,0.45989081,94746.0,94745.0,0.05460031]
[1736534527205,0.45989081,94746.0,94745.0,0.05060031]
[1736534527606,0.46189081,94746.0,94745.0,0.05060031]
[1736534527890,0.46189081,94746.0,94745.0,0.04760031]
[1736534528092,0.46289081,94746.0,94745.0,0.04760031]
[1736534528510,0.46289081,94746.0,94726.0,7.478e-05]
[1736534528511,0.09880081,94727.0,94726.0,7.478e-05]
[1736534528632,0.45993381,94727.0,94726.0,7.478e-05]
[1736534529032,0.45993381,94727.0,94707.0,0.00016233]
[1736534529033,0.15,94726.0,94707.0,0.00016233]
[1736534529298,0.45995381,94718.0,94707.0,0.00016233]
[1736534529495,0.56425357,94718.0,94717.0,0.04393555]
[1736534529753,0.56425357,94718.0,94717.0,0.03893555]
[1736534530612,0.45995381,94718.0,94717.0,0.03893555]
[1736534530841,0.002,94726.0,94717.0,0.03893555]
[1736534531075,0.01048502,94723.0,94718.0,0.18415535]
[1736534531285,0.002,94726.0,94719.0,0.04342499]
[1736534531454,0.01230677,94726.0,94722.0,1.5]
[1736534531667,0.01230677,94726.0,94721.0,0.211146]
[1736534531865,0.002,94726.0,94720.0,0.10429976]
[1736534532367,0.01058627,94733.0,94720.0,0.10429976]
[1736534532573,0.01058627,94733.0,94720.0,0.17522208]
[1736534532826,0.01073182,94735.0,94722.0,0.007]
[1736534533064,0.01073182,94735.0,94723.0,0.10429976]
[1736534533266,0.211071,94755.0,94733.0,0.211119]
[1736534533267,0.01080354,94737.0,94733.0,0.211119]
[1736534533444,0.001,94726.0,94724.0,0.211139]
[1736534533684,0.001,94726.0,94725.0,0.06780073]
[1736534533894,0.15,94741.0,94725.0,0.06780073]
[1736534534105,0.15,94741.0,94721.0,0.211146]
[1736534534286,0.15,94741.0,94725.0,0.2322382]
[1736534534847,0.15,94739.0,94725.0,0.0211022]
[1736534535048,0.01066923,94741.0,94725.0,0.0211022]
[1736534535247,0.15,94742.0,94733.0,0.002]
[1736534535449,0.15,94739.0,94733.0,0.002]
[1736534535693,0.10929283,94743.0,94733.0,0.002]
[1736534535888,0.15,94735.0,94725.0,0.004]
[1736534536104,0.15,94735.0,94725.0,0.003]
[1736534536533,0.01049202,94743.0,94733.0,0.002]
[1736534536873,0.00892,94751.0,94734.0,0.10429976]
[1736534537177,0.005,94735.0,94734.0,0.10429976]
[1736534537614,0.005,94735.0,94727.0,0.211131]
[1736534537825,0.005,94735.0,94728.0,0.10429976]
[1736534538240,0.005,94735.0,94728.0,0.15941632]
[1736534538445,0.005,94735.0,94734.0,0.02074919]
[1736534538747,0.15,94742.0,94734.0,0.02074919]
[1736534539690,0.15,94742.0,94734.0,0.02774919]
[1736534539900,0.15,94742.0,94734.0,0.02974919]
[1736534540106,0.0007852,94741.0,94734.0,0.002]
[1736534540328,0.15,94735.0,94734.0,0.005]
[1736534540983,0.24880081,94735.0,94734.0,0.005]
[1736534541184,0.24880081,94735.0,94734.0,0.002]
[1736534541331,0.09880081,94731.0,94708.0,0.00105573]
[1736534541525,0.15,94726.0,94710.0,0.211168]
[1736534541939,0.211137,94725.0,94716.0,0.02141314]
[1736534542578,0.15,94729.0,94717.0,0.04042897]
[1736534542792,0.211107,94739.0,94722.0,0.211143]
[1736534543041,0.1,94762.0,94717.0,0.04042897]
[1736534543042,0.211039,94769.0,94723.0,0.10535531]
[1736534543253,0.11400496,94768.0,94733.0,0.0827]
[1736534543461,0.09880081,94745.0,94733.0,0.18699976]
[1736534543672,0.15,94736.0,94720.0,0.0827]
[1736534543875,0.15,94736.0,94721.0,0.10429976]
[1736534544297,0.15,94736.0,94722.0,0.211144]
[1736534544607,0.15,94736.0,94733.0,0.001]
[1736534545011,0.15,94737.0,94733.0,0.001]
[1736534545420,0.16057124,94737.0,94733.0,0.001]
[1736534545623,0.16057124,94737.0,94732.0,0.02153362]
[1736534546070,0.211112,94736.0,94733.0,0.002]
[1736534546545,0.211112,94736.0,94733.0,0.006]
[1736534546961,0.16057124,94737.0,94732.0,0.02153362]
[1736534547205,0.211112,94736.0,94733.0,0.005]
[1736534547617,0.211112,94736.0,94732.0,0.02153362]
[1736534548003,0.211097,94743.0,94732.0,0.02153362]
[1736534548220,0.000171,94777.0,94733.0,0.10509806]
[1736534548435,0.219964,94767.0,94735.0,0.211115]
[1736534548636,0.00892,94767.0,94736.0,0.10535507]
[1736534548836,0.09880081,94750.0,94737.0,1.5]
[1736534549049,0.211097,94744.0,94737.0,1.5]
[1736534549395,0.211097,94744.0,94735.0,0.0799]
[1736534549396,0.211103,94741.0,94735.0,0.0799]
[1736534549604,0.09880081,94750.0,94735.0,0.001]
[1736534549811,0.09880081,94750.0,94732.0,0.02253362]
[1736534550157,0.211117,94734.0,94732.0,0.02153362]
[1736534550360,0.211106,94739.0,94732.0,0.02153362]
[1736534550819,0.211106,94739.0,94735.0,0.003]
[1736534551020,0.15,94742.0,94735.0,0.003]
[1736534551358,0.16071533,94742.0,94735.0,0.003]
[1736534551597,0.01071533,94742.0,94735.0,0.003]
[1736534551803,0.211092,94746.0,94735.0,0.02656616]
[1736534552005,0.15,94743.0,94735.0,0.02656616]
[1736534552229,0.09880081,94748.0,94735.0,0.02656616]
[1736534552230,0.15,94751.0,94737.0,0.002]
[1736534552413,0.211088,94747.0,94738.0,0.10429976]
[1736534552623,0.15,94746.0,94738.0,0.10429976]
[1736534553627,0.15,94746.0,94738.0,0.10729976]
[1736534554077,0.15,94746.0,94732.0,0.02153362]
[1736534554078,0.211095,94744.0,94735.0,0.002]
[1736534554291,0.15,94743.0,94735.0,0.002]
[1736534554496,0.211099,94742.0,94738.0,0.003]
[1736534554844,0.211099,94742.0,94738.0,0.005]
[1736534555050,0.15,94741.0,94738.0,0.005]
[1736534555251,0.211099,94742.0,94738.0,0.005]
[1736534555252,0.211104,94740.0,94738.0,0.003]
[1736534555664,0.422208,94740.0,94735.0,0.003]
[1736534556004,0.211112,94736.0,94735.0,0.008]
[1736534556360,0.211096,94744.0,94735.0,0.003]
[1736534556564,0.01630201,94772.0,94739.0,0.211104]
[1736534556767,0.211054,94763.0,94740.0,0.19520279]
[1736534556951,0.211062,94759.0,94741.0,0.11090548]
[1736534557151,0.01043949,94771.0,94750.0,0.078]
[1736534557363,0.210998,94788.0,94753.0,0.1]
[1736534557564,0.210998,94788.0,94752.0,0.00119919]
[1736534557565,0.0498,94799.0,94762.0,0.10429976]
[1736534557861,0.210963,94804.0,94768.0,0.078]
[1736534557862,0.01035934,94786.0,94768.0,0.078]
[1736534558128,0.01035934,94786.0,94775.0,0.211024]
[1736534558306,0.0498,94817.0,94775.0,0.211024]
[1736534558307,0.000171,94834.0,94776.0,0.23945922]
[1736534558510,0.000171,94834.0,94776.0,0.25920901]
[1736534558653,0.00031936,94777.0,94776.0,0.26812901]
[1736534558859,0.00031936,94777.0,94776.0,0.37242877]
[1736534559120,0.01057028,94806.0,94786.0,0.1]
[1736534559373,0.09880081,94807.0,94793.0,0.210984]
[1736534559557,0.210959,94805.0,94776.0,0.12510434]
[1736534559765,0.210976,94798.0,94781.0,0.211012]
[1736534559961,0.15,94797.0,94782.0,0.15172605]
[1736534560177,0.210979,94796.0,94782.0,0.15172605]
[1736534560593,0.15,94797.0,94782.0,0.15172605]
[1736534560594,0.210981,94795.0,94782.0,0.15172605]
[1736534561009,0.210981,94795.0,94782.0,0.36273605]
[1736534561214,0.15,94797.0,94776.0,0.13410434]
[1736534561215,0.211,94787.0,94776.0,0.13410434]
[1736534561389,0.211,94787.0,94782.0,0.005]
[1736534561792,0.211,94787.0,94782.0,0.008]
[1736534562244,0.210992,94790.0,94782.0,0.008]
[1736534562725,0.210992,94790.0,94782.0,0.003]
[1736534562863,0.210992,94790.0,94782.0,0.009]
[1736534563068,0.211002,94786.0,94782.0,0.009]
[1736534563277,0.422005,94786.0,94782.0,0.003]
[1736534563485,0.211002,94786.0,94782.0,0.006]
[1736534564048,0.211002,94786.0,94776.0,0.02080458]
[1736534564245,0.211002,94786.0,94782.0,0.006]
[1736534564500,0.01034141,94796.0,94783.0,0.11741019]
[1736534564680,0.01034141,94796.0,94783.0,0.10535466]
[1736534564879,0.210974,94799.0,94783.0,0.10535466]
[1736534565113,0.421948,94799.0,94783.0,0.31530576]
[1736534565317,0.210974,94799.0,94783.0,0.31530576]
[1736534565783,0.210974,94798.0,94783.0,0.10429976]
[1736534565951,0.210974,94798.0,94783.0,0.10729976]
[1736534566127,0.210977,94797.0,94784.0,0.05323358]
[1736534566289,0.210977,94797.0,94784.0,0.15753334]
[1736534566504,0.210977,94797.0,94784.0,0.10429976]
[1736534567101,0.09880081,94799.0,94783.0,0.002]
[1736534567317,0.09880081,94799.0,94768.0,0.078]
[1736534567518,0.210999,94788.0,94783.0,0.002]
[1736534567719,0.210999,94788.0,94786.0,0.0208957]
[1736534568140,0.210999,94788.0,94784.0,0.003]
[1736534569198,0.210999,94788.0,94786.0,0.002]
[1736534569596,0.15,94787.0,94786.0,0.002]
[1736534569808,0.24958601,94787.0,94786.0,0.002]
[1736534570148,0.24880081,94787.0,94786.0,0.002]
[1736534570516,0.24880081,94787.0,94786.0,0.004]
[1736534570741,0.24880081,94787.0,94765.0,0.02107092]
[1736534570954,0.15,94776.0,94765.0,0.04428401]
[1736534571344,0.15,94774.0,94765.0,0.02107092]
[1736534571546,0.15,94772.0,94765.0,0.02107092]
[1736534571960,0.211035,94771.0,94765.0,0.02107092]
[1736534572503,0.15,94772.0,94765.0,0.02107092]
[1736534572710,0.15,94774.0,94765.0,0.02107092]
[1736534572923,0.15,94774.0,94765.0,0.06538961]
[1736534573997,0.15,94772.0,94765.0,0.07038961]
[1736534574203,0.211035,94771.0,94765.0,0.06538961]
[1736534574417,0.15,94772.0,94765.0,0.07138961]
[1736534574855,0.211035,94771.0,94765.0,0.02707092]
[1736534574978,0.211035,94771.0,94765.0,0.02407092]
[1736534575185,0.211035,94771.0,94765.0,0.02707092]
[1736534575797,0.211035,94771.0,94765.0,0.02107092]
[1736534576005,0.211029,94774.0,94765.0,0.02407092]
[1736534576214,0.01312979,94775.0,94765.0,0.02707092]
[1736534576215,0.15,94773.0,94765.0,0.02707092]
[1736534576415,0.15,94773.0,94765.0,0.02407092]
[1736534576665,0.15,94773.0,94765.0,0.02907092]
[1736534576812,0.15,94773.0,94765.0,0.10975479]
[1736534577029,0.211039,94769.0,94765.0,0.02407092]
[1736534577251,0.361031,94773.0,94765.0,0.02807092]
[1736534577446,0.361031,94773.0,94765.0,0.02507092]
[1736534577888,0.361031,94773.0,94765.0,0.02807092]
[1736534578308,0.361031,94773.0,94765.0,0.02507092]
[1736534578659,0.361031,94773.0,94765.0,0.02707092]
[1736534579627,0.361031,94773.0,94765.0,0.05009986]
[1736534580035,0.211038,94770.0,94765.0,0.05009986]
[1736534580214,0.211046,94767.0,94765.0,0.02707092]
[1736534580429,0.211045,94767.0,94765.0,0.006]
[1736534580633,0.0007852,94766.0,94765.0,0.006]
[1736534580870,0.211045,94767.0,94765.0,0.006]
[1736534581078,0.211045,94767.0,94754.0,0.0771]
[1736534581281,0.211055,94762.0,94761.0,0.02134632]
[1736534582240,0.211055,94762.0,94747.0,0.211086]
[1736534582466,0.211057,94761.0,94746.0,0.0011]
[1736534582664,0.211075,94753.0,94746.0,0.0011]
[1736534582865,0.15,94759.0,94749.0,0.02072725]
[1736534583106,0.15,94759.0,94750.0,0.10429976]
[1736534583306,0.211046,94766.0,94765.0,0.003]
[1736534583722,0.45984681,94766.0,94765.0,0.003]
[1736534584098,0.211058,94761.0,94750.0,0.10429976]
[1736534584525,0.21105,94764.0,94751.0,0.2667159]
[1736534584702,0.01287052,94767.0,94755.0,0.211068]
[1736534584916,0.211029,94774.0,94756.0,0.10535496]
[1736534585180,0.15,94773.0,94757.0,1.5]
[1736534585369,0.15,94773.0,94758.0,0.10535491]
[1736534585500,0.211029,94774.0,94761.0,0.211055]
[1736534585724,0.211028,94774.0,94763.0,0.0826]
[1736534585914,0.01298153,94774.0,94765.0,0.211048]
[1736534586121,0.21102,94778.0,94766.0,0.10429976]
[1736534586368,0.211028,94774.0,94766.0,0.10429976]
[1736534586543,0.211037,94770.0,94766.0,0.10429976]
[1736534586753,0.09880081,94780.0,94769.0,0.02156877]
[1736534586955,0.09880081,94780.0,94761.0,0.07585389]
[1736534586956,0.09880081,94772.0,94761.0,0.002]
[1736534587151,0.211035,94771.0,94762.0,0.02079952]
[1736534587356,0.09880081,94772.0,94766.0,0.004]
[1736534587555,0.211052,94763.0,94762.0,0.02079952]
[1736534587982,0.211049,94765.0,94762.0,0.02079952]
[1736534588183,0.09880081,94772.0,94762.0,0.12509928]
[1736534588423,0.211035,94771.0,94763.0,0.10429976]
[1736534588602,0.10429976,94795.0,94763.0,0.10429976]
[1736534588603,0.09880081,94781.0,94766.0,0.002]
[1736534588856,0.09880081,94792.0,94770.0,0.211036]
[1736534589065,0.211005,94785.0,94773.0,0.0806]
[1736534589275,0.210992,94790.0,94773.0,0.0806]
[1736534589276,0.210988,94792.0,94777.0,0.211019]
[1736534589510,0.0128879,94796.0,94790.0,0.210991]
[1736534589719,0.0128879,94796.0,94791.0,0.14969351]
[1736534589929,0.0128879,94796.0,94791.0,0.14863871]
[1736534590160,0.0128879,94796.0,94792.0,0.210988]
[1736534590380,0.0128879,94796.0,94793.0,0.10429976]
[1736534590869,0.0128879,94796.0,94794.0,0.210983]
[1736534591081,0.0128879,94796.0,94795.0,0.14182562]
[1736534591879,0.0128879,94796.0,94787.0,0.210999]
[1736534592112,0.24880081,94795.0,94793.0,0.005]
[1736534592322,0.360983,94794.0,94793.0,0.005]
[1736534592551,0.360983,94794.0,94782.0,0.211008]
[1736534592552,0.15,94794.0,94782.0,0.211008]
[1736534592748,0.15,94794.0,94793.0,0.009]
[1736534592931,0.211001,94786.0,94773.0,0.0806]
[1736534593149,0.15,94794.0,94787.0,0.008]
[1736534593452,0.210986,94793.0,94775.0,0.211024]
[1736534593652,0.15,94794.0,94783.0,0.211007]
[1736534593882,0.15,94794.0,94784.0,0.03039548]
[1736534594021,0.210986,94793.0,94784.0,0.02139548]
[1736534594229,0.210995,94789.0,94784.0,0.02139548]
[1736534594432,0.210995,94789.0,94787.0,0.002]
[1736534594823,0.0128879,94796.0,94788.0,0.10429976]
[1736534594998,0.0128879,94796.0,94789.0,0.01382435]
[1736534595310,0.0128879,94796.0,94793.0,0.421969]
[1736534595508,0.0128879,94796.0,94794.0,0.10429976]
[1736534596028,0.0128879,94796.0,94795.0,0.210981]
[1736534596232,0.0128879,94796.0,94795.0,0.10429976]
[1736534596544,0.0128879,94796.0,94795.0,0.15820449]
[1736534597174,0.0128879,94796.0,94795.0,0.16720449]
[1736534597375,0.210948,94810.0,94796.0,0.210979]
[1736534597580,0.09880081,94812.0,94796.0,0.10429976]
[1736534597797,0.210957,94806.0,94797.0,0.0806]
[1736534598200,0.21095,94809.0,94798.0,0.210974]
[1736534598396,0.21095,94809.0,94797.0,0.0806]
[1736534598599,0.210952,94808.0,94797.0,0.0806]
[1736534599039,0.21095,94809.0,94798.0,0.210974]
[1736534599455,0.0133643,94812.0,94805.0,0.210959]
[1736534599834,0.15,94814.0,94804.0,0.02140871]
[1736534600156,0.210941,94813.0,94804.0,0.02140871]
[1736534601958,0.210941,94813.0,94805.0,0.003]
[1736534602410,0.421883,94813.0,94805.0,0.003]
[1736534602830,0.421883,94813.0,94805.0,0.00114]
[1736534603054,0.421883,94813.0,94805.0,0.02712913]
[1736534603269,0.421883,94813.0,94805.0,0.03312913]
[1736534603533,0.21095,94810.0,94805.0,0.006]
[1736534603985,0.24880081,94814.0,94805.0,0.006]
[1736534604172,0.01342946,94815.0,94805.0,0.006]
[1736534604173,0.45975781,94806.0,94805.0,0.006]
[1736534604915,0.15,94806.0,94805.0,0.006]
[1736534605119,0.09880081,94814.0,94805.0,0.006]
[1736534605334,0.210939,94814.0,94805.0,0.009]
[1736534605549,0.01342946,94815.0,94806.0,0.10535449]
[1736534605749,0.0001706,94815.0,94811.0,0.210944]
[1736534605958,0.0001706,94815.0,94812.0,0.10535436]
[1736534606166,0.0001706,94815.0,94812.0,0.10429976]
[1736534606822,0.0009558,94815.0,94797.0,0.0819]
[1736534606975,0.0001706,94815.0,94811.0,0.007]
[1736534607186,0.210939,94814.0,94811.0,0.007]
[1736534607410,0.210939,94814.0,94811.0,0.002]
[1736534608186,0.0001706,94815.0,94811.0,0.002]
[1736534608396,0.0001706,94815.0,94812.0,0.31524276]
[1736534608622,0.0001706,94815.0,94812.0,0.32424276]
[1736534608822,0.0001706,94815.0,94813.0,0.00105461]
[1736534609034,0.0001706,94815.0,94814.0,0.31523876]
[1736534609854,0.211087,94825.0,94815.0,0.0819]
[1736534609855,0.000171,94825.0,94815.0,0.0819]
[1736534610060,0.21087,94845.0,94833.0,0.210897]
[1736534610271,0.0001706,94850.0,94833.0,0.31519676]
[1736534610486,0.01326939,94843.0,94833.0,0.31519676]
[1736534610962,0.0001706,94850.0,94833.0,0.31519676]
[1736534611368,0.01250625,94845.0,94833.0,0.31519676]
[1736534611780,0.01250625,94845.0,94833.0,0.33622315]
[1736534612192,0.01250625,94845.0,94833.0,0.34422315]
[1736534612401,0.01250625,94845.0,94833.0,0.42094618]
[1736534612808,0.01250625,94845.0,94833.0,0.42494618]
[1736534613221,0.0001706,94850.0,94833.0,0.21404918]
[1736534613431,0.09880081,94869.0,94842.0,0.18499976]
[1736534613650,0.09880081,94869.0,94848.0,0.02102217]
[1736534613862,0.09880081,94858.0,94849.0,0.10535381]
[1736534614070,0.09880081,94858.0,94849.0,0.10429976]
[1736534614494,0.210843,94857.0,94849.0,0.10429976]
[1736534614707,0.09880081,94858.0,94852.0,0.02139387]
[1736534614954,0.210856,94852.0,94841.0,0.210879]
[1736534615176,0.210856,94852.0,94842.0,0.10429976]
[1736534615393,0.15,94847.0,94821.0,0.0775]
[1736534615600,0.210885,94839.0,94833.0,0.002]
[1736534615807,0.21089,94836.0,94834.0,0.10429976]
[1736534616032,0.09880081,94837.0,94836.0,0.02111509]
[1736534616232,0.09880081,94836.0,94823.0,0.10429976]
[1736534616406,0.210892,94835.0,94833.0,0.004]
[1736534616821,0.210892,94835.0,94824.0,0.10429976]
[1736534617024,0.210892,94835.0,94829.0,0.02160279]
[1736534617239,0.210892,94835.0,94834.0,0.004]
[1736534617649,0.210903,94830.0,94829.0,0.02160279]
[1736534618153,0.210894,94834.0,94829.0,0.02160279]
[1736534618976,0.210894,94834.0,94829.0,0.03852397]
[1736534619176,0.210894,94834.0,94829.0,0.02160279]
[1736534619375,0.210894,94834.0,94829.0,0.02760279]
[1736534619704,0.210894,94834.0,94829.0,0.02460279]
[1736534620400,0.210894,94834.0,94829.0,0.02860279]
[1736534620706,0.210894,94834.0,94829.0,0.02560279]
[1736534621121,0.210894,94834.0,94829.0,0.02760279]
[1736534621770,0.210894,94834.0,94829.0,0.02360279]
[1736534621972,0.30969281,94836.0,94829.0,0.02360279]
[1736534622176,0.30969281,94836.0,94829.0,0.02760279]
[1736534622354,0.30969281,94836.0,94829.0,0.02360279]
[1736534622510,0.30969281,94836.0,94829.0,0.07857725]
[1736534622736,0.30969281,94836.0,94829.0,0.08357725]
[1736534622913,0.30969281,94836.0,94829.0,0.07857725]
[1736534623120,0.52058481,94836.0,94829.0,0.07657725]
[1736534623318,0.30969281,94836.0,94829.0,0.08357725]
[1736534623540,0.09880081,94836.0,94829.0,0.07857725]
[1736534623706,0.09880081,94836.0,94830.0,0.14367846]
[1736534623902,0.01290466,94839.0,94834.0,0.210892]
[1736534624168,0.210865,94847.0,94834.0,0.31519176]
[1736534624514,0.210875,94843.0,94834.0,0.10429976]
[1736534624875,0.210884,94839.0,94834.0,0.14211809]
[1736534625085,0.210884,94839.0,94834.0,0.10429976]
[1736534625304,0.24880081,94842.0,94834.0,0.10429976]
[1736534625513,0.210879,94841.0,94834.0,0.10829976]
[1736534625649,0.210879,94841.0,94834.0,0.10429976]
[1736534626110,0.210879,94841.0,94834.0,0.11129976]
[1736534626343,0.24880081,94842.0,94835.0,0.03831833]
[1736534626497,0.09880081,94842.0,94835.0,0.03831833]
[1736534626899,0.30967781,94842.0,94835.0,0.03831833]
[1736534627566,0.53297049,94842.0,94835.0,0.03831833]
[1736534627745,0.53297049,94842.0,94835.0,0.04231833]
[1736534627948,0.09880081,94836.0,94835.0,0.004]
[1736534628348,0.09880081,94836.0,94835.0,0.012]
[1736534628531,0.30969081,94836.0,94835.0,0.004]
[1736534628731,0.30969081,94836.0,94835.0,0.01]
[1736534629075,0.30969081,94836.0,94835.0,0.004]
[1736534629482,0.30969081,94836.0,94835.0,0.008]
[1736534629677,0.45969081,94836.0,94835.0,0.004]
[1736534629812,0.45969081,94836.0,94835.0,0.008]
[1736534630226,0.47202327,94836.0,94835.0,0.008]